Cogmind - Beta 15 @@@ ROGUE MODE // 2025.09.27 @ 19:40:53 Player: tourn Result: Self-destructed Performance ------------- Evolutions (6) 3000 Regions Visited (8) 1600 Robots Destroyed (169) 845 Value Destroyed (5533) 5533 Prototype IDs (14) 280 Alien Tech Used (0) 0 Bonus (332) 332 TOTAL SCORE: 11590 Bonus ------- High Alert Combat Kills 421 Friendly Fire -89 Cogmind --------- Core Integrity 961/1150 Matter 6/300 Energy 100/100 System Corruption 20% Temperature Cool (19) Movement Rolling (100) Location -4/Factory Parts ------- > --- POWER (2) -------- (None) > --- PROPULSION (5) --- Advanced Medium Treads Armored Huge Wheel (fused) > --- UTILITY (8) ------ IFF Parser > --- WEAPON (4) ------- KE Penetrator Mini Assault Cannon Accelerated Mag Construct/C > --- INVENTORY (5) ---- Advanced Sensor Array Katana Peak State ------------ > --- POWER ------------ Micro Fission Core Nuclear-Fission Core > --- PROPULSION ------- Hovering Antigrav Exoskeleton > --- UTILITY ---------- Armored Scrap Engine Advanced Heat Sink High-capacity Storage Unit Enhanced Optical Array Hardened Heavy Armor Plating > --- WEAPON ----------- Neutron Cannon Mini Assault Cannon Accelerated Mag Construct/C > --- INVENTORY -------- Fission Core Antigrav System Improved Heat Sink Improved Heat Sink Advanced Sensor Array IFF Parser Improved Medium Armor Plating Reactive Plating Insulated Plating Improved Thermal Shield EM Disruption Field Shock Rifle Katana [Rating: 98] Favorites ----------- Power Constructs Engine Ion Engine Power Core Constructs Propulsion Aluminum Leg Treads Advanced Medium Treads Leg Aluminum Leg Wheel Wheel Hover Unit Constructs Utility Medium Storage Unit Device Armored Scrap Engine Storage Medium Storage Unit Processor Enhanced Optical Array Hackware Hacking Suite Protection Reactive Plating Weapon Constructs Energy Gun Constructs Energy Cannon Constructs Ballistic Gun Light Assault Rifle Ballistic Cannon Mini Assault Cannon Launcher Improved Grenade Launcher Impact Weapon Heavy Mace Slashing Weapon Katana Build | -11 -10 -10 -8 -8 -8 -6 -5 -4 ------- Run | Yrd Mat Sub Mat Sto Rec Fac Fac Fac Slots Evolved 12 | . . . 4 . . 4 2 2 Power 1 | . . . 1 . . . . . Propulsion 3 | . . . . . . 2 1 . Utility 6 | . . . 2 . . 2 1 1 Weapon 2 | . . . 1 . . . . 1 Parts Attached 101 | . 8 4 15 15 3 30 17 9 Power 14 | . 1 . 4 2 . 1 4 2 Engine 6 | . 1 . 3 1 . . 1 . Core 8 | . . . 1 1 . 1 3 2 Reactor . | . . . . . . . . . Propulsion 23 | . 3 2 3 4 1 7 1 2 Treads 1 | . . . . . . . . 1 Leg 7 | . 3 1 2 . . . 1 . Wheel 15 | . . 1 1 4 1 7 . 1 Hover . | . . . . . . . . . Flight . | . . . . . . . . . Utility 38 | . 2 . 4 4 2 14 9 3 Device 19 | . 1 . . 2 2 8 4 2 Storage 3 | . 1 . 1 . . . 1 . Processor 3 | . . . . . . 2 . 1 Hackware 1 | . . . . . . 1 . . Protection 12 | . . . 3 2 . 3 4 . Artifact . | . . . . . . . . . Weapon 26 | . 2 2 4 5 . 8 3 2 Energy Gun 4 | . . . . 2 . 2 . . Energy Cannon 6 | . . 1 1 1 . . 2 1 Ballistic Gun 9 | . 2 1 1 2 . 2 . 1 Ballistic Cannon 4 | . . . 2 . . 1 1 . Launcher 1 | . . . . . . 1 . . Special Weapon . | . . . . . . . . . Impact Weapon 1 | . . . . . . 1 . . Slashing Weapon 1 | . . . . . . 1 . . Piercing Weapon . | . . . . . . . . . Special Melee Weapon . | . . . . . . . . . Unidentified Prototypes 8 | . . . . 3 1 1 3 . Corrupted Parts 1 | . . . . 1 . . . . System Corruption 1 | . . . . 1 . . . . Parts Lost 62 | . 2 3 8 3 4 18 13 11 Power 11 | . . . 2 1 1 3 3 1 Propulsion 20 | . 1 2 3 1 2 6 2 3 Utility 18 | . . . 1 1 . 5 5 6 Weapon 13 | . 1 1 2 . 1 4 3 1 Highest Loss Streak 6 | . 2 2 6 1 4 6 5 5 To Critical Strikes . | . . . . . . . . . Average Backups 8 | . 7 9 8 8 9 9 9 6 Power 1 | . 1 1 . . 1 1 1 1 Propulsion 1 | . 3 2 1 1 1 . . . Utility 3 | . . 1 1 3 3 5 6 3 Weapon 2 | . 2 4 4 2 3 2 1 1 Tool/Special . | . . . . . . . . . Unused Backups 14 | . 1 . 1 1 3 5 1 2 Power . | . . . . . . . . . Propulsion 2 | . . . . . 1 . 1 . Utility 7 | . 1 . . . 1 3 . 2 Weapon 5 | . . . 1 1 1 2 . . Tool/Special . | . . . . . . . . . Average Slot Usage (%) 74 | . 97 99 79 88 83 65 61 38 Engine 4 | . 14 14 8 7 . 2 . . Core 3 | . . . 4 1 8 2 7 4 Leg 7 | . 27 19 11 4 . 1 3 . Wheel 7 | . . 8 6 12 17 9 . 1 Device 12 | . 13 14 . 8 18 14 13 13 Storage 7 | . 14 14 9 9 9 5 4 2 Processor 2 | . . . . . . 6 2 . Protection 4 | . . . 13 18 7 . 7 . Energy Gun 4 | . . . . 8 14 6 1 . Energy Cannon 3 | . . 11 4 2 8 1 7 1 Ballistic Gun 7 | . 27 16 15 8 . 2 . 2 Ballistic Cannon 2 | . . . 6 7 . 2 2 3 Peak Build Rating 98 | . 7 9 19 33 43 72 98 81 Average Rating 41 | . 6 8 13 25 31 56 80 54 On Entrance 22 | 6 6 7 9 15 33 24 53 48 Naked Turns . | . . . . . . . . . Heaviest Build 98 | 11 19 25 40 48 38 44 98 65 Greatest Support 120 | 20 20 20 20 32 32 81 120 41 Greatest Overweight (x) 4 | . 4 2 2 2 3 3 1 2 Average Overweight (x) . | . . 1 1 1 . . . . Largest Inventory Capacity 20 | . 10 10 10 10 10 10 20 20 Average Capacity 11 | . 8 10 10 10 10 9 18 10 Most Carried 13 | . 9 10 10 10 10 10 13 9 Average Carried 8 | . 7 9 8 8 9 9 9 6 Final Capacity 20 | 8 10 10 10 10 10 5 20 5 Final Carried 10 | 6 9 10 10 9 7 4 8 2 Scrap Engine Consumption 111 | . . . . . 6 78 26 1 Constructs Created 9 | . . . . . . 7 1 1 Constructs Modified 34 | . . . . . . 25 9 . Class Distribution -------------------- 33% | Mutant 29% | Construct 8% | Scavenger-Tank 5% | Tank 5% | Gunner 5% | Scavenger-Mutant 4% | Skirmisher 3% | Scavenger-Construct 3% | Scavenger-Gunner Dominant Class ---------------- Mutant | -10/Materials Mutant | -10/Subcaves Scavenger-Tank | -8/Materials Tank | -8/Storage Scavenger-Gunner | -8/Recycling Construct | -6/Factory Construct | -5/Factory Mutant | -4/Factory Resources | -11 -10 -10 -8 -8 -8 -6 -5 -4 ----------- Run | Yrd Mat Sub Mat Sto Rec Fac Fac Fac Matter Collected 3773 | 191 356 75 422 348 98 1333 723 227 Remotely . | . . . . . . . . . Salvage Created 7526 | . 545 169 775 769 575 3267 1266 160 Parts 373 | . 47 9 41 53 22 134 61 6 Haulers Intercepted 5 | . . . 1 2 . 2 . . Recyclers Shooed 15 | . 2 . 3 . 1 8 1 . Parts Field Recycled . | . . . . . . . . . Retrieved Matter . | . . . . . . . . . Parts Self-Destructed 6 | . . 6 . . . . . . Prevented . | . . . . . . . . . Kills | -11 -10 -10 -8 -8 -8 -6 -5 -4 ------- Run | Yrd Mat Sub Mat Sto Rec Fac Fac Fac Combat Hostiles Destroyed 111 | . 16 4 12 12 4 36 23 4 Melee 1 | . . . . . . 1 . . Guns 45 | . 16 2 2 8 1 13 2 1 Cannons 55 | . . 2 10 4 3 17 16 3 AOE 3 | . . . . . . 1 2 . Classes Destroyed 18 | . 4 1 2 3 . 8 . . Worker 18 | . . . . 1 . 14 3 . Builder 10 | . 1 . . 1 1 7 . . Tunneler 6 | . . . . . . 4 2 . Hauler 5 | . . . 1 2 . 2 . . Recycler 14 | . 1 . 3 . 4 4 2 . Mechanic 2 | . . . . . . 2 . . Operator 1 | . . . . 1 . . . . Watcher 2 | . . . . . . 2 . . Swarmer 18 | . 8 . . . . . 10 . Cutter 2 | . . . . . . 2 . . Grunt 38 | . 8 . 8 5 . 10 6 1 Brawler 2 | . . . . . . 1 . 1 Duelist 4 | . . . . 1 . 2 . 1 Sentry 21 | . . . 4 6 . 8 3 . Specialist 2 | . . . . . . 2 . . Hunter 2 | . . . . . . 2 . . Programmer 14 | . . . . . . 9 4 1 Subdweller 8 | . . 4 . . 4 . . . Best Kill Streak 12 | . 4 1 6 3 3 12 8 2 Combat Bots Only 7 | . 3 1 3 3 1 5 7 2 Max Kills in Single Turn 3 | . 2 1 1 2 2 2 3 1 Gunslinging . | . . . . . . . . . Exploded 2 | . . . . . . 1 2 . Melee 1 | . . . . . . 1 . . Uniques/NPCs Destroyed . | . . . . . . . . . Combat | -11 -10 -10 -8 -8 -8 -6 -5 -4 -------- Run | Yrd Mat Sub Mat Sto Rec Fac Fac Fac Hostile Shots Fired 1259 | . 87 35 96 62 68 429 362 120 Missed 386 | . 24 15 16 9 21 149 112 40 Hits 873 | . 63 20 80 53 47 280 250 80 Melee 25 | . . . . 1 . 9 1 14 Projectile 848 | . 63 20 80 52 47 271 249 66 Critical Strikes 36 | . . . 3 3 3 12 9 6 Part Disruptions 9 | . . . . . 9 . . . Damage Taken 13744 | . 642 443 1087 793 948 3835 4119 1877 Core 1629 | . 122 125 175 34 289 535 160 189 Absorbed by Shields . | . . . . . . . . . Ignored by Resistances 181 | . . . . 37 4 115 25 . Regen/Repaired (Parts) 2064 | . . . . . . 1166 898 . Core Remaining (%) 46 | 100 . 1 . . 9 37 84 . Volleys Fired 462 | . 58 25 52 38 22 139 88 40 Largest 3 | . 2 2 3 3 3 3 3 3 Hottest 222 | . 40 100 117 206 206 170 222 144 Shots Fired 1085 | . 116 42 135 106 59 360 187 80 Gun 615 | . 116 27 78 62 37 234 34 27 Cannon 467 | . . 15 57 44 22 123 153 53 Launcher 3 | . . . . . . 3 . . Special . | . . . . . . . . . Kinetic 632 | . 116 27 116 47 3 192 51 80 Thermal 345 | . . 15 19 59 56 111 85 . Explosive 3 | . . . . . . 3 . . Electromagnetic 105 | . . . . . . 54 51 . Robot Hit Streak 16 | . 14 12 7 9 5 15 16 12 Robot Miss Streak 8 | . 5 1 5 8 3 6 6 3 Penetration Max 1 | . . . . . . 1 . 1 Secondary Targets . | . . . . . . . . . Shots Hit Robots 697 | . 73 25 71 60 32 276 111 49 Core Hits 358 | . 32 7 28 25 13 196 44 13 Critical Kills . | . . . . . . . . . Critical Parts Destroyed . | . . . . . . . . . Critical Strikes 6 | . . . . 1 1 1 3 . Burn 4 | . . . . 1 1 . 2 . Blast 1 | . . . . . . . 1 . Smash 1 | . . . . . . 1 . . Melee Attacks 27 | . . . . . . 21 3 3 Impact 8 | . . . . . . 8 . . Slashing 19 | . . . . . . 13 3 3 Piercing . | . . . . . . . . . Sneak Attacks 1 | . . . . . . 1 . . Combat Hostiles . | . . . . . . . . . Follow-up Attacks . | . . . . . . . . . Damage Inflicted 16585 | . 821 244 1044 1333 789 7280 3631 1443 Guns 7297 | . 794 128 255 734 492 3976 463 455 Cannons 7844 | . . 116 784 599 297 2211 2849 988 Explosions 1018 | . . . . . . 699 319 . Melee 372 | . . . . . . 372 . . Ramming 54 | . 27 . 5 . . 22 . . Kinetic 8161 | . 794 128 876 561 65 3359 935 1443 Thermal 5660 | . . 116 163 772 724 2038 1847 . Explosive 357 | . . . . . . 357 . . Electromagnetic 1981 | . . . . . . 1132 849 . Impact 190 | . . . . . . 190 . . Slashing 182 | . . . . . . 182 . . Piercing . | . . . . . . . . . Highest Corruption 20 | . . . . 1 6 4 6 20 Average Corruption 3 | . . . . 1 1 1 3 15 Corruption Purged 3 | . . . . . . 3 . . Corruption Blocked 7 | . . . . . . . . 7 Effects 61 | . . . . . 8 23 16 14 Message Errors 12 | . . . . . . 8 3 1 Matter Fused 19 | . . . . . 2 7 4 6 Heat Flow Errors 6 | . . . . . 3 . 1 2 Energy Discharges 4 | . . . . . 1 2 1 . Parts Rejected 3 | . . . . . . 1 2 . Parts Fused 2 | . . . . . . 1 . 1 Data Loss (minor) 7 | . . . . . 1 3 2 1 Misfires 1 | . . . . . 1 . . . Alerts 3 | . . . . . . . 2 1 Weapon Failures 4 | . . . . . . 1 1 2 Overload Shots . | . . . . . . . . . Overflow Damage 194 | . . . . . 2 94 76 22 Projectiles 84 | . . . . . 2 13 47 22 Explosions 103 | . . . . . . 74 29 . Melee 7 | . . . . . . 7 . . Knockbacks 72 | . . . 8 2 . 31 11 20 Impact . | . . . . . . . . . Kinetic 70 | . . . 8 2 . 31 11 18 Secondary 2 | . . . . . . . . 2 Self-Inflicted Damage 340 | . . . 2 . . 193 145 . Shots 6 | . . . . . . 3 3 . Rammed 2 | . . . 1 . . 1 . . Targets Rammed 5 | . 3 . 1 . . 1 . . Kicked 3 | . 3 . . . . . . . Crushed . | . . . . . . . . . Highest Temperature 445 | . 6 6 386 445 328 371 391 232 Average Temperature 114 | . 6 6 113 174 107 77 160 29 Received Heat Transfer 3074 | . 228 141 432 405 21 1235 495 117 Effects 21 | . . . 4 7 . . 10 . Shutdowns 2 | . . . . . . . 2 . Energy Bleed 4 | . . . . 2 . . 2 . Interference 8 | . . . 3 . . . 5 . Short Circuit 3 | . . . . 3 . . . . Damage (minor) 4 | . . . 1 2 . . 1 . Siege Activations . | . . . . . . . . . Martial Activations . | . . . . . . . . . Shielding Activations . | . . . . . . . . . Robots Disrupted . | . . . . . . . . . Combat Hostiles . | . . . . . . . . . Robots Corrupted 3 | . . . . . . 1 2 . Combat Hostiles 3 | . . . . . . 1 2 . Parts Fried 6 | . . . . . 2 2 2 . Impact Corruptions 1 | . . . . . . 1 . . Robots Melted 5 | . . . . . . 4 1 . Combat Hostiles 4 | . . . . . . 3 1 . Parts Melted 28 | . . 1 . 3 2 22 . . Heat Transferred 10815 | . . 148 259 1406 1258 6273 1471 . Parts Sabotaged 2 | . . . . . . . 2 . Parts Stolen . | . . . . . . . . . Parts Stripped . | . . . . . . . . . Power Chain Reactions 8 | . . . . . . 4 4 . Alert | -11 -10 -10 -8 -8 -8 -6 -5 -4 ------- Run | Yrd Mat Sub Mat Sto Rec Fac Fac Fac Maximum Alert Level 3 | . . . . 1 . 3 2 1 Low Security (%) 68 | . 100 . 100 77 100 66 . 74 Level 1 16 | . . . . 22 . 10 53 25 Level 2 10 | . . . . . . 9 46 . Level 3 4 | . . . . . . 13 . . Level 4 . | . . . . . . . . . Level 5 . | . . . . . . . . . High Security . | . . . . . . . . . Max Security . | . . . . . . . . . Peak Influence 770 | . 141 . 113 260 59 770 640 270 Initial 367 | . . . . 39 59 . 367 270 Average 172 | . 34 . 40 119 9 207 417 157 Influence Increases 3995 | . 432 30 389 688 97 1370 813 176 Destroy 0b10 Robot/C 2060 | . 320 . 240 240 . 720 460 80 Destroy 0b10 Robot/NC 290 | . 10 . 20 25 25 175 35 . Destroy Leader 534 | . 50 . 52 84 . 248 100 . Successful Hack 107 | . 6 . 10 7 47 18 14 5 Disable Machine 180 | . . . 15 15 15 75 15 45 Anti-Garrison Action 200 | . . . . 200 . . . . Destroy Structure 219 | . 1 . 7 12 10 59 84 46 Lose Combat Pursuer 405 | . 45 30 45 105 . 75 105 . Influence Decreases 3937 | . 429 33 296 628 250 620 1011 670 Entered New Map 816 | . . 3 . 54 94 . 383 282 Time Decay 2288 | . 282 30 266 367 156 411 498 278 Lost Part 480 | . 20 . 30 30 . 160 130 110 Purge Threat 353 | . 127 . . 177 . 49 . . Squads Dispatched 37 | . 3 . 1 5 . 19 8 1 Investigation 3 | . 2 . . 1 . . . . Extermination 11 | . . . . . . 7 3 1 Reinforcement 14 | . 1 . . 3 . 8 2 . Assault 1 | . . . . . . 1 . . Garrison 8 | . . . 1 1 . 3 3 . Intercept . | . . . . . . . . . Searches Triggered . | . . . . . . . . . Construction Impeded 3 | . . . . . . 2 1 . Haulers Reinforced 1 | . . . . . . 1 . . Active Scanning Responses . | . . . . . . . . . Cargo Convoy Interrupts 1 | . . . . . . . 1 . Stealth | -11 -10 -10 -8 -8 -8 -6 -5 -4 --------- Run | Yrd Mat Sub Mat Sto Rec Fac Fac Fac Distress Signals 15 | . 3 . 2 4 1 4 1 . Communications Jammed . | . . . . . . . . . Distress Signals . | . . . . . . . . . Times Spotted 241 | . 30 3 23 39 16 74 50 6 Peak Tracking Total 12 | . 6 2 5 7 2 12 11 3 Tactical Retreats 23 | . 3 1 2 4 5 4 4 . Traps | -11 -10 -10 -8 -8 -8 -6 -5 -4 ------- Run | Yrd Mat Sub Mat Sto Rec Fac Fac Fac Traps Triggered 12 | . 3 2 . 1 . 5 . 1 Indirectly . | . . . . . . . . . Trap Hack Attempts . | . . . . . . . . . Triggered . | . . . . . . . . . Disarmed . | . . . . . . . . . Reprogrammed . | . . . . . . . . . Reused . | . . . . . . . . . Traps Extracted . | . . . . . . . . . Installed . | . . . . . . . . . Triggered . | . . . . . . . . . Machines | -11 -10 -10 -8 -8 -8 -6 -5 -4 ---------- Run | Yrd Mat Sub Mat Sto Rec Fac Fac Fac Machines Disabled 12 | . . . 1 1 1 5 1 3 Max in Single Turn 4 | . . . 1 1 1 4 1 1 Garrison Access 1 | . . . . 1 . . . . Machines Repaired . | . . . . . . . . . Machines Dismantled . | . . . . . . . . . Machines Sabotaged . | . . . . . . . . . Overloaded Fab Kills . | . . . . . . . . . Hacking | -11 -10 -10 -8 -8 -8 -6 -5 -4 --------- Run | Yrd Mat Sub Mat Sto Rec Fac Fac Fac Machines Accessed 26 | . 5 . 3 3 6 6 2 1 Terminals 22 | . 5 . 3 2 4 5 2 1 Fabricators 1 | . . . . . . 1 . . Repair Stations . | . . . . . . . . . Recycling Units . | . . . . . . . . . Scanalyzers . | . . . . . . . . . Garrison Access 1 | . . . . 1 . . . . Total Hacks 84 | . 10 . 7 11 37 12 3 4 Successful 53 | . 3 . 2 7 33 5 1 2 Failed 31 | . 7 . 5 4 4 7 2 2 Catastrophic 5 | . 2 . 1 1 . . 1 . Database Lockouts . | . . . . . . . . . Manual 24 | . 4 . 1 3 6 5 2 3 Terminals 53 | . 10 . 7 8 10 11 3 4 Fabricators 1 | . . . . . . 1 . . Repair Stations . | . . . . . . . . . Recycling Units . | . . . . . . . . . Scanalyzers . | . . . . . . . . . Garrison Access 3 | . . . . 3 . . . . Terminal Hacks 49 | . 3 . 1 5 33 5 1 1 Record 25 | . . . . . 25 . . . Robot Analysis 5 | . 1 . . . 3 1 . . Branch Access Points 1 | . . . . . 1 . . . Unreport Threat 5 | . 1 . . 2 . 2 . . Locate Traps 1 | . . . . 1 . . . . Recall Investigation 1 | . . . . 1 . . . . Zone Layout 9 | . 1 . 1 1 2 2 1 1 Release Object 2 | . . . . . 2 . . . Fabricator Hacks . | . . . . . . . . . Repair Station Hacks . | . . . . . . . . . Recycling Unit Hacks . | . . . . . . . . . Scanalyzer . | . . . . . . . . . Garrison Access Hacks . | . . . . . . . . . Unauthorized Hacks 4 | . . . 1 2 . . . 1 Terminals 3 | . . . 1 1 . . . 1 Botnet 3 | . . . 1 1 . . . 1 Fabricators . | . . . . . . . . . Repair Stations . | . . . . . . . . . Recycling Units . | . . . . . . . . . Scanalyzers . | . . . . . . . . . Garrison Access 1 | . . . . 1 . . . . Jam 1 | . . . . 1 . . . . Data Cores Recovered . | . . . . . . . . . Used . | . . . . . . . . . Hacking Detections 22 | . 4 . 3 3 3 6 2 1 Full Trace Events 1 | . 1 . . . . . . . Feedback Events . | . . . . . . . . . Feedback Blocked . | . . . . . . . . . Robot Schematics Acquired . | . . . . . . . . . Robots Built . | . . . . . . . . . Authchips . | . . . . . . . . . Time . | . . . . . . . . . Total Robot Build Rating . | . . . . . . . . . Part Schematics Acquired . | . . . . . . . . . Parts Built . | . . . . . . . . . Authchips . | . . . . . . . . . Time . | . . . . . . . . . Total Part Build Rating . | . . . . . . . . . Parts Repaired . | . . . . . . . . . Time . | . . . . . . . . . Parts Recycled . | . . . . . . . . . Recycled Matter . | . . . . . . . . . Retrieved Matter . | . . . . . . . . . Retrieved Components . | . . . . . . . . . Parts Scanalyzed . | . . . . . . . . . Part Schematics Acquired . | . . . . . . . . . Parts Damaged . | . . . . . . . . . Bothacking | -11 -10 -10 -8 -8 -8 -6 -5 -4 ------------ Run | Yrd Mat Sub Mat Sto Rec Fac Fac Fac Used RIF Installer . | . . . . . . . . . Robots Hacked . | . . . . . . . . . Non-combat . | . . . . . . . . . Combat . | . . . . . . . . . Robot Hacks Applied . | . . . . . . . . . Relay Couplers Released . | . . . . . . . . . Fabnet Peak Effective % . | . . . . . . . . . Robots Rewired . | . . . . . . . . . Allies Hacked . | . . . . . . . . . Hacks Repelled . | . . . . . . . . . Allies | -11 -10 -10 -8 -8 -8 -6 -5 -4 -------- Run | Yrd Mat Sub Mat Sto Rec Fac Fac Fac Total Allies . | . . . . . . . . . Largest Group . | . . . . . . . . . Highest-Rated Group . | . . . . . . . . . Highest-Rated Ally . | . . . . . . . . . Total Orders . | . . . . . . . . . Ally Attacks . | . . . . . . . . . Total Damage . | . . . . . . . . . Kills . | . . . . . . . . . Allies Corrupted . | . . . . . . . . . Allies Melted . | . . . . . . . . . Intel | -11 -10 -10 -8 -8 -8 -6 -5 -4 ------- Run | Yrd Mat Sub Mat Sto Rec Fac Fac Fac Active Infowar (turns) 4280 | . . . . . 148 3147 736 249 Optics 3718 | . . . . . . 2982 736 . Sensors 205 | . . . . . . 205 . . IFF 1635 | . . . . . . 1098 288 249 Structural 860 | . . . . . 148 712 . . Robot Analysis Total 5 | . 1 . . . 3 1 . . Derelict Logs Recovered 1 | . . 1 . . . . . . Drone Launches . | . . . . . . . . . Drone Recoveries . | . . . . . . . . . Exploration | -11 -10 -10 -8 -8 -8 -6 -5 -4 ------------- Run | Yrd Mat Sub Mat Sto Rec Fac Fac Fac Turns Passed 9298 | . 1107 709 776 853 752 3147 1337 617 Spaces Moved 5984 | 1 689 425 388 526 559 2097 812 487 Core 443 | . 16 . . . 13 169 . 245 Treads 69 | . . . . . . 69 . . Legs 1450 | 1 673 147 113 . . . 516 . Wheels 3329 | . . 278 275 526 546 1543 118 43 Hover 693 | . . . . . . 316 178 199 Flight . | . . . . . . . . . Fastest Speed 50 | 120 120 110 95 115 100 68 82 50 Average Speed 111 | 120 124 127 144 123 115 100 108 91 Slowest Speed 250 | 120 250 190 190 130 200 200 137 152 Overloaded Moves . | . . . . . . . . . Propulsion Burnouts . | . . . . . . . . . Robots Hopped . | . . . . . . . . . Potential Cave-ins . | . . . . . . . . . Cave-ins Triggered . | . . . . . . . . . Exploration Rate (%) 45 | 2 86 38 34 86 77 54 24 12 Regions Visited 8 Branch Regions 3 Pre-discovered Areas 1 | . . 1 . . . . . . Known Exits Taken . | . . . . . . . . . Unknown Exits Taken 8 | 1 1 1 1 1 1 1 1 . Scrap Searched 3 | . . 3 . . . . . . Spaces Dug 17 | . . . 1 . 1 6 6 3 Terrain Destroyed 152 | . . 1 7 10 10 67 41 16 Melee 12 | . . . . . . 6 3 3 Projectile 67 | . . 1 7 10 10 . 26 13 AOE 73 | . . . . . . 61 12 . Terrain Rammed . | . . . . . . . . . Walls Destroyed . | . . . . . . . . . Machines Disabled . | . . . . . . . . . Actions | -11 -10 -10 -8 -8 -8 -6 -5 -4 --------- Run | Yrd Mat Sub Mat Sto Rec Fac Fac Fac Total 7636 | . 830 550 503 648 629 2813 1091 572 Wait 869 | . 59 92 34 50 25 456 139 14 Move 5976 | . 688 424 387 525 558 2096 811 487 Hop . | . . . . . . . . . Pick Up 46 | . 8 3 5 7 4 12 6 1 Fast Attach 73 | . 2 1 9 7 2 25 17 10 Attach 49 | . 3 3 5 8 1 14 8 7 Detach 33 | . . 1 . 1 2 14 9 6 Swap 38 | . 4 1 4 3 2 19 5 . Drop 58 | . 5 . 6 9 13 16 5 4 Fire 462 | . 58 25 52 38 22 139 88 40 Melee 27 | . . . . . . 21 3 3 Ram 2 | . . . 1 . . 1 . . Kick 3 | . 3 . . . . . . . Crush . | . . . . . . . . . Escape Stasis . | . . . . . . . . . Rewire . | . . . . . . . . . Trap . | . . . . . . . . . Miscellaneous . | . . . . . . . . . Route ------- -11/Scrapyard -10/Materials (discovered 4 exits: [*Mat x2] / [*Min] / [*Sub]) -10/Subcaves -8/Materials (discovered 2 exits: [*Fac] / *Sto) -8/Storage (discovered 2 exits: [*Fac] / *Rec) -8/Recycling -6/Factory (discovered 3 exits: *Fac x2 / [*Low]) -5/Factory (discovered 3 exits: *Fac x2 / [*Upp]) -4/Factory History --------- Turn | Location | Event 1 | -11/Scrapyard | Discovered new exit (range 0) 1 | -11/Scrapyard | Entered Materials 302 | -10/Materials | Build established: Mutant 371 | -10/Materials | Discovered new exit (range 9) 432 | -10/Materials | Discovered new exit (range 5) 566 | -10/Materials | Discovered new exit (range 16) 1000 | -10/Materials | Discovered new exit (range 15) 1108 | -10/Materials | Entered Subcaves 1202 | -10/Subcaves | Core integrity fell below 50% 1224 | -10/Subcaves | A swath of the cavern ceiling suddenly collapsed 1470 | -10/Subcaves | Core integrity fell below 20% 1588 | -10/Subcaves | Shifting Twisted Machinery released Sub. Laser 1588 | -10/Subcaves | Shifting Twisted Machinery released Battle Cannon 1724 | -10/Subcaves | Disturbed a concealed Subdweller 1798 | -10/Subcaves | Discovered new exit (range 14) 1817 | -10/Subcaves | Entered Materials 1817 | -8/Materials | Evolved 4 slots: Power x1, Utility x2, Weapon x1 1908 | -8/Materials | Lost 6 parts (1p3n1u1w) 2044 | -8/Materials | Discovered new exit (range 12) 2165 | -8/Materials | Build established: Gunner 2410 | -8/Materials | Discovered new exit (range 9) 2540 | -8/Materials | Garrison activated, responded to threat 2593 | -8/Materials | Entered Storage 2640 | -8/Storage | Met 01-MTF 2735 | -8/Storage | Garrison activated, responded to threat 2966 | -8/Storage | Build established: Scavenger-Tank 3015 | -8/Storage | Discovered new exit (range 13) 3308 | -8/Storage | Build established: Tank 3408 | -8/Storage | Used back door to open Recycling access 3408 | -8/Storage | Discovered new exit (range 5) 3446 | -8/Storage | Entered Recycling 3446 | -8/Recycling | Accompanied by 1 ally (01-MTF) 3701 | -8/Recycling | Discovered new exit (range 16) 4017 | -8/Recycling | Entered Scraplab 4038 | -8/Recycling | Found Prototype Device 4038 | -8/Recycling | Identified Scrap Engine 4124 | -8/Recycling | Core integrity fell below 50% 4187 | -8/Recycling | Core integrity fell below 20% 4198 | -8/Recycling | Entered Factory 4198 | -6/Factory | Evolved 4 slots: Propulsion x2, Utility x2 4202 | -6/Factory | Lost 4 parts (1p2n1w) 4453 | -6/Factory | Build established: Mutant 5560 | -6/Factory | Build established: Construct 5655 | -6/Factory | Discovered new exit (range 12) 6106 | -6/Factory | Spotted B-75 Beast 6168 | -6/Factory | Discovered new exit (range 21) 6761 | -6/Factory | Garrison activated, responded to threat 6998 | -6/Factory | First assault squad dispatched 7208 | -6/Factory | Lost 6 parts (1p2n1u2w) 7282 | -6/Factory | Core integrity fell below 50% 7318 | -6/Factory | Lost 3 parts (2u1w) 7340 | -6/Factory | Discovered new exit (range 5) 7345 | -6/Factory | Entered another Factory area 7345 | -5/Factory | Evolved 2 slots: Propulsion x1, Utility x1 7594 | -5/Factory | Discovered new exit (range 5) 7597 | -5/Factory | Discovered new exit (range 13) 7863 | -5/Factory | Discovered new exit (range 5) 7864 | -5/Factory | Garrison activated, responded to threat 8347 | -5/Factory | Destroyed 7 combat bots 8347 | -5/Factory | Lost 5 parts (1p1n2u1w) 8590 | -5/Factory | Cargo convoy interrupted 8650 | -5/Factory | Lost 5 parts (1n2u2w) 8682 | -5/Factory | Entered another Factory area 8682 | -4/Factory | Evolved 2 slots: Utility x1, Weapon x1 8914 | -4/Factory | Build established: Mutant 9026 | -4/Factory | System corruption reached 10% 9059 | -4/Factory | Lost 4 parts (1n3u) 9202 | -4/Factory | Spotted B-86 Titan 9299 | -4/Factory | Self-destructed Last Messages --------------- 09267_ Construction Platform disabled. 09268_ Imp. Corruption Screen intercepted 1% system corruption. 09268_ Imp. Corruption Screen expended. 09272_ Acquired 38 matter. 09275_ Acquired 3 matter. 09277_ Scrap Engine destroyed. 09278_ System corrupted: Matter fused (-10). 09282_ Destroyed Hpw. Shock Rifle. 09282_ P-70 Sage knocked back. 09285_ System corrupted: Accelerated Mag Construct/C failed to cycle. 09286_ U-05 Engineer builds a Wall. 09287_ Hovering Antigrav Exoskeleton destroyed. 09288_ P-70 Sage knocked back. 09290_ Hvy. Disruptor Cannon destroyed. 09291_ U-05 Engineer builds a Wall. 09292_ Slug penetrates Wall. 09292_ P-70 Sage knocked back. 09296_ Slug penetrates P-70 Sage. 09296_ Fission Core destroyed. 09297_ U-05 Engineer builds a Wall. Map ----- +----------------------------------------------------+ | | | | | | | | | | | | | | | ????????????????????????????????????????????###### | | ????????????????????????????????????????????# | | ????????????????????????????????????????????# """ | | ????????????????????????????????????????????# """ | | ????????????????????????????????????????????# """ | | ????????????????????????????????????????????# | | ????????????????????######?????###??????????# """ | | ????????????????????# ????? #??????????# """ | | ????????????????????# """???? #??????????# """ | | ???????????########## """""?? #??????????# | | ############ # """""?? #??????????# | | #" " # """"""? #??????????###### | | # # ; ?? #??############## | | # !# # """"""" #??# # | | "# ! # """" #u! """"""" #??# """ "" # | | "# ! # """" + """""" #??# """ T" # | | "# # """"% #p """""" #??# """ "" + | | # ! # """" % u#??# # | | ##! # #p @ ##?# """ """ # | | ##+#########+#########;##########??# """ """ # | | """ ! ###### """ """ # | | "T" * ! + # | | " " [ ###### # | | ##+######### % ^ #????# # | | # ??# ^ #????# # | | # ### #???###########+### | | # + ###########???# | | =# ! ### #?????????????# | | # ####+####+##?????????????# | | # ?# #??????????????# | | !# ?# """ """ #??????????##### | | # ??# """ """ #??????????????????? ## | | ## ??# """ """ #???????????????????? ?? | | ?######???# "" "" #???????????????????? """?? | | ??????????# "" "" #???????????????????? ""??? | | ??????????# #????????????????????? ?????? | | ??????????# #????????????????????????????? | | ??????????###########????????????????????????????? | | ?????????????????????????????????????????????????? | | ?????????????????????????????????????????????????? | | ?????????????????????????????????????????????????? | | ?????????????????????????????????????????????????? | | ?????????????????????????????????????????????????? | +----------------------------------------------------+ Best States ------------- Heat Dissipation 71 Energy Generation 30 Energy Capacity 310 Matter Stores 300 Matter Capacity 300 Sight Range 22 Robot Scan Range 15 Terrain Scan Density 10 Additional Mass Support 9 Corruption Block 7 Armor Coverage 600 Resistance: KI 20 Resistance: EM 15 Evasion (%) 58 Core Analysis 6 Recoil Reduction 3 Energy Filtering 50 Particle Charging 20 Kinecelleration 40 Offensive Hacking 10 Item Schematics ----------------- None Robot Schematics ------------------ None Fabricated ------------ Nothing Repaired ---------- Nothing Alien Tech Used ----------------- None Achievements -------------- None Challenges ------------ None Game ------ Seed ReactionScatterBooster Manual? 0 Play Time 02:46:35 Cumulative 220.5 hours Start 2025.09.04 @ 08:06:06 End 2025.09.27 @ 19:40:53 Sessions 17 Manual Loads 0 Difficulty Rogue Special Mode None Game No. 87 Rogue 87 Adventurer 0 Explorer 0 Win Type - Total 5 Types 4/0/0/1/0/0/0/0/0/0 Lore% 45 Gallery% 62 Achievement% 55 Wizard Run 0 Options --------- Layout 0 ASCII 0 Keyboard 1 Movement Vi Keybinds 0 Fullscreen 1 Font 18/Terminus Map View 76x50 Zoom Use 0% Tactical HUD 1 Map Filters NONE Filters NONE Steam 1 RUN: 833c9550-cb0a-41d9-af80-7f3836d0595a